bitfinex-derivatives/quotes_SOLF0:USTF0_20260105
["timestamp","ask_amount","ask_price","bid_price","bid_amount"]
[1767590920328,1.74929607,135.89,135.83,6.6287]
[1767590924236,1.74929607,135.89,135.82,0.31525285]
[1767590924435,1.74929607,135.87,135.82,0.31525285]
[1767590931341,93.6056,135.9,135.82,0.31525285]
[1767590931541,1.74929607,135.88,135.82,0.31525285]
[1767590932037,86.96,135.9,135.83,0.31525285]
[1767590932227,1.74929607,135.89,135.83,0.31525285]
[1767590933540,1.74929607,135.89,135.83,6.94395285]
[1767590934839,1.74929607,135.89,135.83,0.31525285]
[1767590937650,1.74929607,135.89,135.82,6.6292]
[1767590940238,1.74929607,135.89,135.82,6.94445285]
[1767590942946,1.74929607,135.89,135.83,6.94937325]
[1767590944749,86.96,135.9,135.83,6.94937325]
[1767590945042,88.70929607,135.9,135.83,20.60896102]
[1767590948750,95.33479607,135.9,135.83,0.32067325]
[1767590950053,88.70929607,135.9,135.83,6.94937325]
[1767590950446,88.70929607,135.9,135.84,0.32067325]
[1767590951450,1.74929607,135.9,135.84,0.32067325]
[1767590951652,88.70929607,135.9,135.84,0.32067325]
[1767590951952,1.74929607,135.9,135.85,0.32067325]
[1767590952154,88.70929607,135.92,135.85,0.32067325]
[1767590953553,88.70929607,135.92,135.85,6.94847325]
[1767590954158,88.70929607,135.92,135.85,8.69776932]
[1767590954559,86.96,135.92,135.85,8.69776932]
[1767590962474,86.96,135.92,135.85,6.94847325]
[1767590962881,6.6229,135.96,135.86,6.94787325]
[1767590963178,86.96,135.95,135.86,6.94787325]
[1767590963570,86.96,135.95,135.87,6.6268]
[1767590964173,86.96,135.95,135.86,0.32067325]
[1767590965576,6.6237,135.94,135.86,0.32067325]
[1767590970277,9.35458218,135.94,135.86,0.32067325]
[1767590970472,9.35458218,135.94,135.87,0.31512679]
[1767590970978,2.73088218,135.94,135.87,6.94182679]
[1767590971180,86.96,135.95,135.87,6.94182679]
[1767590972481,86.96,135.95,135.88,0.31512679]
[1767590977887,9.35378218,135.96,135.88,0.31512679]
[1767590978188,86.94,135.95,135.88,0.31512679]
[1767590978390,93.5631,135.95,135.88,0.31512679]
[1767590987898,86.94,135.95,135.88,6.94142679]
[1767590992401,86.94,135.95,135.89,0.30701197]
[1767590992699,89.67088218,135.96,135.89,0.30701197]
[1767591003012,86.94,135.96,135.9,0.31044055]
[1767591003607,86.94,135.96,135.9,6.93574055]
[1767591006014,86.94,135.96,135.89,6.6258]
[1767591006810,86.94,135.96,135.89,6.93624055]
[1767591007214,93.5626,135.96,135.88,0.31044055]
[1767591007515,2.73088218,135.95,135.88,0.31044055]
[1767591011107,86.92,135.96,135.89,0.31044055]
[1767591012809,86.92,135.96,135.9,6.6253]
[1767591013012,6.6219,135.98,135.91,0.31044055]
[1767591013013,89.65088218,135.98,135.91,0.31044055]
[1767591018820,89.65088218,135.98,135.91,6.93524055]
[1767591019022,2.73088218,135.98,135.91,6.93524055]
[1767591019424,86.92,135.98,135.91,6.93524055]
[1767591020720,86.92,135.98,135.91,0.31044055]
[1767591020915,89.65088218,135.98,135.89,6.93614055]
[1767591021120,2.73088218,135.96,135.89,6.93614055]
[1767591021918,2.73088218,135.96,135.88,13.65958777]
[1767591022217,2.73088218,135.94,135.87,20.59662832]
[1767591022618,1.74782798,135.93,135.87,20.59662832]
[1767591025727,1.74782798,135.93,135.87,13.97002832]
[1767591026226,86.92,135.93,135.85,20.59762832]
[1767591026428,1.74782798,135.92,135.85,20.59762832]
[1767591027040,1.74782798,135.92,135.85,0.31044055]
[1767591027326,1.74782798,135.9,135.83,20.59862832]
[1767591027924,1.74782798,135.93,135.86,1.74782798]
[1767591028121,125.1053,135.98,135.87,0.31044055]
[1767591028122,1.74782798,135.94,135.87,0.31044055]
[1767591029126,1.74782798,135.96,135.88,0.31044055]
[1767591030528,1.74782798,135.96,135.88,6.93664055]
[1767591035041,1.74782798,135.94,135.88,0.31044055]
[1767591041148,1.74782798,135.94,135.88,6.93684055]
[1767591041444,88.66782798,135.97,135.89,0.32922441]
[1767591041637,88.66782798,135.97,135.89,6.95502441]
[1767591042844,6.6217,135.98,135.9,6.6253]
[1767591043050,88.66782798,135.97,135.9,6.95452441]
[1767591045854,88.66782798,135.97,135.9,0.32922441]
[1767591046147,95.28992798,135.97,135.9,0.32922441]
[1767591046350,88.66782798,135.97,135.88,8.70305239]
[1767591047654,6.6227,135.96,135.88,8.70305239]
[1767591048150,6.6231,135.95,135.87,15.73664016]
[1767591048352,8.37092798,135.95,135.87,15.73664016]
[1767591049240,8.37092798,135.95,135.88,0.32922441]
[1767591049241,1.74782798,135.95,135.88,0.32922441]
[1767591049448,95.29022798,135.97,135.88,0.32922441]
[1767591049946,95.29022798,135.97,135.89,0.32922441]
[1767591051054,95.29022798,135.97,135.89,6.95502441]
[1767591051448,95.29022798,135.97,135.89,8.70285239]
[1767591052758,95.29022798,135.97,135.9,0.32922441]
[1767591052957,86.92,135.97,135.9,6.95462441]
[1767591053262,86.92,135.97,135.9,0.32922441]
[1767591053451,93.5422,135.97,135.9,0.32922441]
[1767591057054,86.92,135.97,135.9,0.32922441]
[1767591058559,86.92,135.97,135.91,0.32922441]
[1767591059060,86.92,135.97,135.91,2.07705239]
[1767591061559,86.92,135.97,135.92,0.32929427]
[1767591062962,88.66782798,136.0,135.94,0.32929427]
[1767591063857,86.92,136.0,135.94,0.32929427]
[1767591064061,88.66782798,136.0,135.94,0.32929427]
[1767591065263,86.92,136.0,135.94,0.32929427]
[1767591065466,88.66782798,136.0,135.94,0.32929427]
[1767591065967,86.92,136.0,135.94,0.32929427]
[1767591066366,86.92,136.0,135.94,6.95269427]
[1767591067557,86.92,136.0,135.95,0.32929427]
[1767591078778,86.92,136.0,135.95,6.95219427]
[1767591084691,30.26688994,136.02,135.96,6.95169427]
[1767591084884,117.14688994,136.02,135.96,6.95169427]
[1767591088894,117.14688994,136.02,135.97,0.32929427]
[1767591089196,117.14688994,136.02,135.97,6.95119427]
[1767591092394,117.14688994,136.02,135.97,6.6219]
[1767591093787,2.72742709,135.99,135.91,13.9840065]
[1767591093991,86.88,135.98,135.91,0.32441873]
[1767591095604,86.88,135.98,135.91,6.94901873]
[1767591096108,2.72742709,135.97,135.89,6.95001873]
[1767591096997,9.34962709,135.97,135.89,0.32441873]
[1767591097199,2.72742709,135.93,135.85,167.15431845]
[1767591097393,89.60742709,135.93,135.85,153.49473068]
[1767591098305,89.60742709,135.93,135.86,0.33603915]
[1767591100403,89.60742709,135.93,135.85,153.15869153]
[1767591101302,2.72742709,135.91,135.85,153.15869153]
[1767591106013,2.72742709,135.89,135.83,16.90039448]
[1767591106213,89.64742709,135.89,135.83,16.90039448]
[1767591107009,86.92,135.89,135.83,16.90039448]
[1767591107814,86.92,135.89,135.81,0.33603915]
[1767591108018,89.64742709,135.89,135.81,0.33603915]
[1767591112315,2.72742709,135.87,135.79,0.33603915]
[1767591113512,96.27362709,135.89,135.8,0.33603915]
[1767591115714,2.72742709,135.89,135.81,0.33603915]
[1767591116021,89.66742709,135.89,135.81,0.33603915]
[1767591120625,89.66742709,135.89,135.82,0.31134663]
[1767591120824,86.96,135.89,135.82,0.31134663]
[1767591123428,2.72742709,135.92,135.84,0.31134663]
[1767591123623,86.96,135.92,135.84,0.31134663]
[1767591124032,2.72742709,135.91,135.84,0.31134663]
[1767591124935,9.35262709,135.91,135.81,6.94084663]
[1767591129833,2.72742709,135.89,135.81,6.94084663]
[1767591132723,9.35262709,135.91,135.83,0.31134663]
[1767591132919,86.96,135.9,135.83,0.31134663]
[1767591133725,86.96,135.9,135.84,0.31134663]
[1767591135029,86.96,135.9,135.84,6.93954663]
[1767591135333,86.96,135.92,135.84,6.93954663]
[1767591137237,86.96,135.92,135.85,0.31134663]
[1767591139145,6.6242,135.93,135.85,0.31134663]
[1767591139345,86.96,135.92,135.85,0.31134663]
[1767591139639,86.96,135.92,135.85,6.93894663]
[1767591142438,86.96,135.92,135.86,0.31134663]
[1767591142741,88.7076387,135.94,135.87,0.31134663]
[1767591143134,86.96,135.94,135.87,0.31134663]
[1767591149446,86.96,135.94,135.86,8.3748387]
[1767591149633,86.96,135.94,135.86,8.68618533]
[1767591151041,86.96,135.94,135.87,6.96236469]
[1767591155141,1.7476387,135.92,135.85,6.96316469]
[1767591155548,88.7076387,135.94,135.85,0.33566469]
[1767591156747,88.7076387,135.94,135.86,6.6272]
[1767591160651,88.7076387,135.94,135.86,6.96689243]
[1767591162957,88.7076387,135.94,135.87,0.33969243]
[1767591165058,88.7076387,135.94,135.87,6.96649243]
[1767591165256,88.7076387,135.94,135.88,0.33969243]
[1767591166049,86.96,135.94,135.88,0.33969243]
[1767591166656,28.64658777,135.96,135.88,6.96579243]
[1767591166964,86.94,135.95,135.88,0.33969243]
[1767591167260,88.6876387,135.98,135.9,0.33969243]
[1767591167466,88.6876387,135.98,135.9,2.08733113]
[1767591167657,88.6876387,135.98,135.91,0.33969243]
[1767591168258,88.6876387,135.98,135.92,6.6243]
[1767591168660,86.94,135.98,135.92,2.08733113]
[1767591169256,88.6876387,135.98,135.93,6.6236]
[1767591172669,88.6876387,135.98,135.92,0.33969243]
[1767591182664,88.6876387,135.98,135.9,2.06902009]
[1767591182866,1.7476387,135.96,135.9,0.32138139]
[1767591183367,1.7476387,135.94,135.88,6.94758139]
[1767591183566,1.7476387,135.94,135.88,6.6262]
[1767591184165,1.7476387,135.94,135.87,6.94808139]
[1767591190577,1.7476387,135.94,135.88,0.32138139]
[1767591191171,1.7476387,135.94,135.88,6.94758139]
[1767591191378,1.7476387,135.96,135.88,0.32138139]
[1767591191579,1.7476387,135.96,135.9,0.32138139]
[1767591192180,1.7476387,135.96,135.9,6.94658139]
[1767591192775,86.92,135.97,135.91,0.32138139]
[1767591193772,1.7476387,135.96,135.91,0.32138139]
[1767591193978,1.7476387,135.96,135.9,6.6252]
[1767591195673,1.7476387,135.96,135.9,6.94658139]
[1767591195871,1.7476387,135.96,135.91,0.32138139]
[1767591198877,1.7476387,135.99,135.92,0.32138139]
[1767591199069,88.6676387,135.99,135.92,0.32138139]
[1767591199270,86.92,135.99,135.92,0.32138139]
[1767591199471,86.92,135.99,135.93,0.32138139]
[1767591201175,86.92,135.99,135.92,6.6242]
[1767591204887,86.92,135.99,135.91,0.32138139]
[1767591210187,86.92,135.99,135.91,6.94618139]
[1767591215989,93.5413,135.99,135.91,6.94618139]
[1767591216190,2.72870202,135.98,135.89,20.62474778]
[1767591216387,2.72870202,135.96,135.89,20.28518777]
[1767591216898,2.72870202,135.96,135.89,6.6256]
[1767591218598,9.35130202,135.96,135.89,6.6256]
[1767591219202,6.6231,135.95,135.87,20.62574778]
[1767591219401,86.9,135.94,135.87,6.96616001]
[1767591239610,89.62870202,135.94,135.86,13.65958777]
[1767591239807,89.62870202,135.94,135.85,171.52102191]
[1767591241619,89.62870202,135.94,135.86,0.33392061]
[1767591241810,86.9,135.94,135.86,0.33392061]
[1767591242010,86.92,135.93,135.86,0.33392061]
[1767591242624,86.92,135.93,135.87,6.6268]
[1767591245721,93.5441,135.93,135.85,171.1814619]
[1767591248523,93.5441,135.93,135.85,171.51538251]
[1767591256528,86.92,135.93,135.87,0.33392061]
[1767591257628,86.92,135.93,135.87,6.96072061]
[1767591267636,86.92,135.93,135.88,0.33392061]
[1767591270035,86.92,135.93,135.87,6.6268]
[1767591270241,88.66761879,135.93,135.87,6.6268]
[1767591270832,88.66761879,135.93,135.85,171.1813619]
[1767591271027,1.74761879,135.91,135.85,171.1813619]
[1767591272340,1.74761879,135.91,135.85,6.6275]
[1767591273441,1.74761879,135.91,135.85,6.95055916]
[1767591273644,88.66761879,135.93,135.86,0.32305916]
[1767591273940,88.66761879,135.93,135.86,6.95035916]
[1767591275044,88.66761879,135.93,135.87,0.32305916]
[1767591275837,1.74761879,135.93,135.87,0.32305916]
[1767591276038,88.68761879,135.93,135.87,0.32305916]
[1767591277044,88.68761879,135.93,135.86,6.6273]
[1767591277444,1.74761879,135.91,135.85,13.97948727]
[1767591277642,1.74761879,135.91,135.85,0.3198995]
[1767591278757,86.94,135.93,135.84,13.65958777]
[1767591279044,1.74761879,135.89,135.82,20.60918727]
[1767591279251,86.94,135.88,135.82,6.9495995]
[1767591280956,1.74761879,135.85,135.8,148.23027646]
[1767591281244,1.74761879,135.85,135.79,13.65958777]
[1767591281443,1.74761879,135.85,135.78,13.97948727]
[1767591282053,1.74761879,135.85,135.78,0.3198995]
[1767591284554,1.74761879,135.85,135.78,6.9516995]
[1767591290973,1.74761879,135.83,135.78,6.6318]
[1767591291263,1.74761879,135.83,135.78,6.9516995]
[1767591291964,1.74761879,135.85,135.78,6.9516995]
[1767591292161,1.74761879,135.85,135.78,6.6318]
[1767591292367,1.74761879,135.87,135.81,0.3198995]
[1767591293172,1.74761879,135.85,135.79,0.3198995]
[1767591293870,1.74761879,135.85,135.79,6.9511995]
[1767591294870,1.74761879,135.87,135.8,0.3198995]
[1767591295068,1.74761879,135.82,135.76,0.3198995]
[1767591296559,1.74761879,135.82,135.76,6.9524995]
[1767591298264,1.74761879,135.8,135.74,6.9536995]
[1767591298666,1.74761879,135.8,135.71,104.96141879]
[1767591298866,1.74761879,135.8,135.72,6.9544995]
[1767591300169,1.74761879,135.8,135.73,0.3198995]
[1767591301068,1.74761879,135.8,135.74,0.31052575]
[1767591303676,1.74761879,135.82,135.75,0.31052575]
[1767591304066,1.74761879,135.82,135.76,0.31052575]
[1767591305577,87.0,135.83,135.76,0.31052575]
[1767591305778,88.74761879,135.83,135.76,0.31052575]
[1767591306278,1.74761879,135.87,135.78,0.31052575]
[1767591306477,88.74761879,135.87,135.8,0.31052575]
[1767591307069,87.0,135.87,135.81,2.05814454]
[1767591307467,87.0,135.87,135.81,0.31052575]
[1767591310175,87.0,135.87,135.81,6.94082575]
[1767591310682,87.0,135.87,135.8,2.05814454]
[1767591311280,87.0,135.87,135.8,0.31052575]
[1767591311478,87.0,135.87,135.8,2.05814454]
[1767591311680,87.0,135.87,135.8,8.68894454]
[1767591314183,87.0,135.87,135.82,2.05814454]
[1767591314683,6.6258,135.91,135.83,0.31052575]
[1767591314884,87.0,135.9,135.84,1.74761879]
[1767591321389,87.0,135.9,135.84,2.05814454]
[1767591321590,87.0,135.9,135.84,8.68704454]
[1767591322584,87.0,135.9,135.84,6.93942575]
[1767591325495,87.0,135.9,135.82,6.94022575]
[1767591325990,103.0245,135.97,135.85,0.31052575]
[1767591326187,89.71165757,135.96,135.85,3.04218332]
[1767591326382,86.98,135.96,135.85,3.04218332]
[1767591326585,86.98,135.96,135.86,0.31052575]
[1767591327095,93.6034,135.96,135.87,6.6274]
[1767591328000,93.6034,135.96,135.88,6.93742575]
[1767591328493,25.83715752,135.99,135.9,103.38012575]
[1767591328699,2.73165757,136.02,135.92,0.31052575]
[1767591329698,2.73165757,136.02,135.93,6.6244]
[1767591330401,2.73165757,136.02,135.93,6.93492575]
[1767591331991,6.6201,136.03,135.94,0.32847693]
[1767591333605,89.69165757,136.04,135.94,6.95227693]
[1767591333799,89.69165757,136.04,135.95,0.32847693]
[1767591333999,2.73165757,136.07,135.96,0.32847693]
[1767591334297,89.67165757,136.07,135.96,0.32847693]
[1767591335697,96.28945757,136.07,135.97,0.32847693]
[1767591336100,2.73165757,136.09,135.98,0.32847693]
[1767591336405,9.34765757,136.11,136.0,6.94967693]
[1767591337796,9.34765757,136.11,136.01,0.3100916]
[1767591338003,2.73165757,136.09,136.01,0.3100916]
[1767591338204,89.65165757,136.09,136.01,0.3100916]
[1767591340405,86.92,136.09,136.01,0.3100916]
[1767591341204,2.73165757,136.08,136.01,0.3100916]
[1767591342006,2.73165757,136.11,136.01,0.3100916]
[1767591342211,2.73165757,136.11,136.02,0.3100916]
[1767591342514,86.9,136.1,136.02,0.3100916]
[1767591342904,2.73165757,136.13,136.03,0.3100916]
[1767591343106,6.6146,136.14,136.04,0.3100916]
[1767591344708,6.6146,136.14,136.05,0.3100916]
[1767591347207,93.4946,136.14,136.05,0.3100916]
[1767591352117,29.11604528,136.16,136.09,0.3100916]
[1767591353221,35.72974528,136.16,136.09,0.3100916]
[1767591354020,35.72974528,136.16,136.07,6.9276916]
[1767591354522,29.11604528,136.16,136.07,6.9276916]
[1767591357420,29.11604528,136.16,136.08,6.9271916]
[1767591360629,2.73165757,136.15,136.08,0.3100916]
[1767591361833,29.11604528,136.16,136.04,6.93339403]
[1767591361834,2.73165757,136.13,136.04,6.93339403]
[1767591362037,89.55165757,136.13,136.04,6.93339403]
[1767591362828,89.55165757,136.13,136.07,0.0481274]
[1767591363525,96.16675757,136.13,136.07,0.0481274]
[1767591363930,2.73165757,136.11,136.07,0.0481274]
[1767591364125,2.73165757,136.11,136.02,6.6201]
[1767591364126,2.73165757,136.11,136.02,6.93449403]
[1767591364330,2.77834179,136.11,136.02,6.93449403]
[1767591364725,2.73165757,136.11,136.02,6.93449403]
[1767591365427,0.04816103,136.08,136.02,6.93449403]
[1767591365733,0.04816103,136.08,136.03,6.6196]
[1767591367638,86.82,136.13,136.05,0.31439403]
[1767591368032,29.11604528,136.16,136.06,0.31439403]
[1767591368234,86.82,136.15,136.06,0.31439403]
[1767591369238,86.82,136.15,136.08,6.93149403]
[1767591376842,86.82,136.15,136.08,6.6171]
[1767591377548,29.11604528,136.16,136.08,6.6171]
[1767591377739,86.82,136.15,136.08,6.6171]
[1767591383551,96.16575757,136.15,136.07,0.31439403]
[1767591384542,1.742835,136.13,136.07,0.31439403]
[1767591386851,1.742835,136.13,136.06,6.618]
[1767591387951,1.742835,136.13,136.06,6.93239403]
[1767591388355,1.742835,136.13,136.04,6.93339403]
[1767591388648,1.742835,136.11,136.04,6.93339403]
[1767591388848,86.82,136.1,136.04,6.93339403]
[1767591390642,86.82,136.1,136.04,6.619]
[1767591390848,86.82,136.1,136.02,8.68393851]
[1767591391654,86.82,136.1,136.03,6.6196]
[1767591392757,86.82,136.1,136.03,6.94080351]
[1767591392955,1.742835,136.09,136.03,6.94080351]
[1767591394261,88.562835,136.1,136.03,6.94080351]
[1767591397668,86.82,136.1,136.03,6.94080351]
[1767591397869,88.562835,136.1,136.03,6.94080351]
[1767591398167,88.562835,136.1,136.03,8.68363851]
[1767591398363,88.562835,136.1,136.04,0.33434961]
[1767591398364,86.82,136.1,136.04,0.33434961]
[1767591398565,86.82,136.1,136.0,13.99393738]
[1767591398770,1.742835,136.08,136.0,0.33434961]
[1767591398965,1.742835,136.06,136.0,0.33434961]
[1767591399160,86.82,136.05,136.0,6.95524961]
[1767591399970,86.82,136.05,136.01,0.04760287]
[1767591406158,88.562835,136.05,136.01,0.04760287]
[1767591406972,86.82,136.05,136.01,0.04760287]
[1767591407171,88.562835,136.05,136.01,0.04760287]
[1767591407968,1.742835,136.08,136.01,0.04760287]
[1767591408163,86.84,136.07,136.01,0.04760287]
[1767591408369,86.84,136.07,136.0,0.33434961]
[1767591408669,1.742835,136.08,136.0,0.33434961]
[1767591408864,86.84,136.07,136.0,0.33434961]
[1767591409575,86.84,136.07,136.01,6.6206]
[1767591410275,86.84,136.07,136.01,8.363435]
[1767591410474,86.84,136.07,136.01,8.69778461]
[1767591411376,1.742835,136.08,136.01,8.69778461]
[1767591411570,86.84,136.07,136.02,6.62]
[1767591412570,1.742835,136.1,136.04,6.6192]
[1767591412777,86.84,136.09,136.04,6.6192]
[1767591417676,6.6148,136.14,136.04,0.33434961]
[1767591417981,1.742835,136.12,136.04,0.33434961]
[1767591419676,1.742835,136.12,136.06,6.6181]
[1767591420678,86.84,136.13,136.06,6.6181]
[1767591420880,86.84,136.13,136.07,6.6176]
[1767591421081,1.742835,136.15,136.07,0.31766106]
[1767591421382,88.582835,136.13,136.05,0.31766106]
[1767591421780,88.582835,136.13,136.04,104.707035]
[1767591421781,88.582835,136.13,136.07,6.6177]
[1767591421986,88.582835,136.13,136.07,6.93536106]
[1767591425690,88.582835,136.13,136.07,6.6177]
[1767591426887,1.742835,136.09,136.0,0.31766106]
[1767591427089,1.742835,136.06,135.98,0.31766106]
[1767591427386,1.742835,136.04,135.98,0.31766106]
[1767591427594,88.562835,136.04,135.98,0.31766106]
[1767591427788,88.562835,136.04,135.99,6.6215]
[1767591432699,86.82,136.04,135.99,0.31766106]
[1767591432994,1.742835,136.06,136.0,6.93866106]
[1767591433194,86.84,136.05,136.0,6.93866106]
[1767591433397,86.84,136.06,136.01,6.93806106]
[1767591440790,6.6161,136.11,136.01,0.31766106]
[1767591440990,1.742835,136.09,136.01,2.06049606]
[1767591442687,86.84,136.09,136.03,6.93726106]
[1767591443795,1.742835,136.1,136.03,6.93726106]
[1767591444190,88.582835,136.1,136.03,6.93726106]
[1767591445402,1.742835,136.1,136.03,6.93726106]
[1767591445701,88.582835,136.1,136.03,6.93726106]
[1767591446604,86.84,136.1,136.03,6.93726106]
[1767591447707,86.84,136.1,136.03,6.6196]
[1767591448703,89.56436767,136.1,136.01,6.93816106]
[1767591448910,2.72436767,136.08,136.01,6.6205]
[1767591453016,2.72436767,136.09,136.01,6.6205]
[1767591454216,2.72436767,136.1,136.01,0.33407231]
[1767591454415,86.84,136.09,136.01,0.33407231]
[1767591454811,86.84,136.09,136.03,6.6196]
[1767591455012,86.84,136.09,136.02,0.33407231]
[1767591456618,9.34006767,136.12,136.04,6.6191]
[1767591456823,86.84,136.11,136.04,6.6191]
[1767591457421,6.6144,136.15,136.05,6.6185]
[1767591457725,89.56436767,136.14,136.05,6.6185]
[1767591458821,2.72436767,136.14,136.06,6.6179]
[1767591459026,86.84,136.13,136.06,6.6179]
[1767591459228,86.84,136.14,136.06,103.26682817]
[1767591459426,86.84,136.14,136.07,0.31732817]
[1767591460631,86.84,136.14,136.08,6.617]
[1767591461431,2.72436767,136.16,136.08,6.617]
[1767591461630,86.84,136.15,136.08,6.617]
[1767591462621,2.72436767,136.17,136.09,6.6165]
[1767591462817,86.84,136.16,136.09,6.6165]
[1767591463130,86.84,136.17,136.11,6.6157]
[1767591463721,32.13072941,136.18,136.11,6.6157]
[1767591463922,86.84,136.17,136.11,6.6157]
[1767591464221,86.84,136.17,136.09,6.93392817]
[1767591468129,29.40636174,136.18,136.11,6.6157]
[1767591468327,116.22636174,136.18,136.11,6.6157]
[1767591469134,2.72436767,136.17,136.09,6.6167]
[1767591469434,2.72436767,136.17,136.09,6.93402817]
[1767591472946,2.72436767,136.17,136.1,6.6162]
[1767591476650,2.72436767,136.17,136.1,6.93352817]
[1767591477551,118.95072941,136.18,136.1,6.93352817]
[1767591477752,118.95072941,136.18,136.11,6.6157]
[1767591477948,125.56332941,136.18,136.1,0.31732817]
[1767591480558,125.56332941,136.18,136.1,6.93352817]
[1767591481755,118.95072941,136.18,136.1,6.93352817]
[1767591481959,116.22636174,136.18,136.11,6.9506407]
[1767591483960,29.40636174,136.18,136.11,6.9506407]
[1767591484257,86.8,136.17,136.11,6.9506407]
[1767591484962,29.40636174,136.18,136.11,6.9506407]
[1767591485159,86.8,136.17,136.11,6.9506407]
[1767591489464,86.8,136.17,136.08,102.9342]
[1767591489465,29.40636174,136.18,136.13,0.3349407]
[1767591489664,86.8,136.19,136.13,0.3349407]
[1767591490355,86.8,136.19,136.14,6.6142]
[1767591492769,86.8,136.21,136.15,0.3349407]
[1767591493566,86.8,136.21,136.16,6.6131]
[1767591493768,2.72436767,136.25,136.16,6.6131]
[1767591493963,2.72436767,136.23,136.15,0.3349407]
[1767591495666,9.33456767,136.23,136.15,0.3349407]
[1767591496970,6.6107,136.22,136.13,0.3349407]
[1767591497967,6.6107,136.22,136.13,6.9496407]
[1767591498166,102.8691,136.17,136.03,22.1]
[1767591498370,2.72436767,136.09,135.99,13.5583714]
[1767591498566,2.72436767,136.07,135.97,13.56969101]
[1767591498877,112.28726767,136.07,135.95,0.3349407]
[1767591499165,2.72436767,136.03,135.95,0.3349407]
[1767591499369,86.78,136.02,135.95,0.3349407]
[1767591499965,2.72436767,136.04,135.95,0.3349407]
[1767591500162,86.78,136.01,135.95,0.3349407]
[1767591500468,102.9157,136.11,135.97,0.3349407]
[1767591500469,2.72436767,136.07,135.97,0.3349407]
[1767591500773,86.8,136.06,135.97,0.3349407]
[1767591502765,9.34126767,136.09,135.98,0.3349407]
[1767591502973,86.82,136.08,135.98,0.3349407]
[1767591503877,86.82,136.07,135.98,0.3349407]
[1767591506880,86.82,136.07,135.99,0.3349407]
[1767591507070,86.82,136.06,135.99,0.3349407]
[1767591508483,86.82,136.06,135.99,2.07933154]
[1767591508884,86.82,136.06,135.99,0.3349407]
[1767591509090,86.82,136.06,135.99,2.07933154]
[1767591509288,86.82,136.06,135.99,0.3349407]
[1767591509987,88.56439084,136.06,135.99,0.3349407]
[1767591510690,86.82,136.06,135.99,0.3349407]
[1767591511083,88.56439084,136.06,135.99,0.3349407]
[1767591511477,1.74439084,136.04,135.96,6.9602807]
[1767591512792,86.82,136.06,135.96,6.9602807]
[1767591513092,1.74439084,136.03,135.96,6.9602807]
[1767591514887,86.82,136.06,135.97,0.3371807]
[1767591515084,86.86,136.07,135.99,2.08157154]
[1767591515285,1.74439084,136.06,135.99,2.08157154]
[1767591515791,1.74439084,136.06,135.99,0.3371807]
[1767591516993,1.74439084,136.06,135.99,6.9585807]
[1767591519694,1.74439084,136.06,136.0,0.31380026]
[1767591521793,88.60439084,136.06,136.0,0.31380026]
[1767591522700,86.86,136.06,136.0,0.31380026]
[1767591522996,88.60439084,136.06,136.0,0.31380026]
[1767591523598,88.60439084,136.06,135.99,6.6214]
[1767591524900,88.60439084,136.06,135.97,6.6226]
[1767591525107,1.74439084,136.04,135.97,6.6226]
[1767591525606,1.74439084,136.04,135.97,6.93640026]
[1767591525900,1.74439084,136.02,135.95,6.6235]
[1767591526993,1.74439084,136.02,135.95,6.93730026]
[1767591527201,1.74439084,136.02,135.95,8.6816911]
[1767591527602,6.6195,136.04,135.95,8.6816911]
[1767591527803,1.74439084,136.06,135.98,0.31380026]
[1767591528701,1.74439084,136.06,135.98,6.93570026]
[1767591531303,1.74439084,136.06,135.99,0.31380026]
[1767591532806,1.74439084,136.06,135.99,6.93540026]
[1767591534909,1.74439084,136.02,135.97,6.6224]
[1767591535111,1.74439084,136.02,135.97,6.93620026]
[1767591535407,86.86,136.07,135.98,0.31380026]
[1767591535601,1.74439084,136.06,135.98,0.31380026]
[1767591536611,1.74439084,136.06,135.99,6.93530026]
[1767591540711,1.74439084,136.06,136.0,0.3377848]
[1767591541108,86.86,136.07,136.0,0.3377848]
[1767591541304,88.60439084,136.07,136.0,0.3377848]
[1767591545604,88.60439084,136.07,136.01,0.3377848]
[1767591545806,86.86,136.07,136.01,0.3377848]
[1767591546506,86.86,136.08,136.02,0.3377848]
[1767591546711,1.74439084,136.09,136.02,0.3377848]
[1767591546911,88.60439084,136.09,136.02,0.3377848]
[1767591547616,88.60439084,136.09,136.02,6.9578848]
[1767591547914,1.74439084,136.07,136.0,0.3377848]